[Event "*** SCC Grand Prix: Titled Tuesday Blitz"]
[Site "Chess.com"]
[Date "2020.09.08"]
[Round "9"]
[White "Bigfish1995"]
[Black "Oleksandr_Bortnyk"]
[Result "1/2-1/2"]
[WhiteElo "3022"]
[BlackElo "2943"]
[TimeControl "180+1"]
[EndTime "11:47:54 PDT"]
[Termination "Game drawn by repetition"]

1. e4 {[%clk 0:03:00.9]} 1... c5 {[%clk 0:02:59.7]} 2. Nf3 {[%clk 0:03:00.6]}
2... d6 {[%clk 0:02:59]} 3. d4 {[%clk 0:03:00.2]} 3... cxd4 {[%clk 0:02:59.9]}
4. Nxd4 {[%clk 0:03:01.1]} 4... Nf6 {[%clk 0:03:00.5]} 5. Nc3 {[%clk 0:03:01.6]}
5... g6 {[%clk 0:03:01]} 6. Bc4 {[%clk 0:02:59.8]} 6... Bg7 {[%clk 0:02:59.5]}
7. O-O {[%clk 0:02:59.9]} 7... a6 {[%clk 0:02:59.8]} 8. a4 {[%clk 0:02:57.9]}
8... Nc6 {[%clk 0:02:58.5]} 9. h3 {[%clk 0:02:56.2]} 9... O-O {[%clk 0:02:48.6]}
10. Nf3 {[%clk 0:02:55]} 10... Qc7 {[%clk 0:02:39.4]} 11. Re1 {[%clk 0:02:53.1]}
11... Bd7 {[%clk 0:01:59.8]} 12. Bf1 {[%clk 0:02:48.3]} 12... Rac8 {[%clk
0:01:55.1]} 13. Nd5 {[%clk 0:02:47]} 13... Nxd5 {[%clk 0:01:53.7]} 14. exd5
{[%clk 0:02:47.1]} 14... Ne5 {[%clk 0:01:53.5]} 15. c3 {[%clk 0:02:47.6]} 15...
b5 {[%clk 0:01:37.2]} 16. axb5 {[%clk 0:02:47.2]} 16... axb5 {[%clk 0:01:38.1]}
17. Nd4 {[%clk 0:02:47.1]} 17... Qb7 {[%clk 0:01:26.1]} 18. f4 {[%clk
0:02:38.7]} 18... Nc4 {[%clk 0:01:26.3]} 19. Rxe7 {[%clk 0:02:37.2]} 19... Bf6
{[%clk 0:01:26.4]} 20. Re1 {[%clk 0:02:26.7]} 20... Qxd5 {[%clk 0:01:23.8]} 21.
Kh2 {[%clk 0:02:08.9]} 21... b4 {[%clk 0:01:20.5]} 22. Ra7 {[%clk 0:01:53.5]}
22... Rfd8 {[%clk 0:01:16.3]} 23. Qd3 {[%clk 0:01:27.2]} 23... Bxd4 {[%clk
0:00:33.6]} 24. Qxd4 {[%clk 0:01:20.8]} 24... Qxd4 {[%clk 0:00:33.2]} 25. cxd4
{[%clk 0:01:21.7]} 25... d5 {[%clk 0:00:24.8]} 26. b3 {[%clk 0:00:53.1]} 26...
Nd6 {[%clk 0:00:24.9]} 27. Bd2 {[%clk 0:00:53.2]} 27... Rb8 {[%clk 0:00:23.7]}
28. Re7 {[%clk 0:00:28.7]} 28... Be6 {[%clk 0:00:19.8]} 29. Ra4 {[%clk
0:00:28.3]} 29... Nf5 {[%clk 0:00:18.3]} 30. Rc7 {[%clk 0:00:21.6]} 30... Nxd4
{[%clk 0:00:18.8]} 31. Bxb4 {[%clk 0:00:20.4]} 31... Bd7 {[%clk 0:00:15.9]} 32.
Raa7 {[%clk 0:00:15.6]} 32... Nc6 {[%clk 0:00:06.4]} 33. Be7 {[%clk 0:00:08.4]}
33... Nxe7 {[%clk 0:00:02.4]} 34. Rxd7 {[%clk 0:00:08.5]} 34... Rxd7 {[%clk
0:00:03.2]} 35. Rxd7 {[%clk 0:00:09]} 35... Nf5 {[%clk 0:00:03.6]} 36. Bd3
{[%clk 0:00:06.6]} 36... Ne3 {[%clk 0:00:02.9]} 37. Re7 {[%clk 0:00:06.9]} 37...
d4 {[%clk 0:00:03.5]} 38. Bc4 {[%clk 0:00:06.7]} 38... Nxc4 {[%clk 0:00:03.4]}
39. bxc4 {[%clk 0:00:07.6]} 39... Rc8 {[%clk 0:00:03.5]} 40. Rd7 {[%clk
0:00:05.8]} 40... Rxc4 {[%clk 0:00:04.1]} 41. f5 {[%clk 0:00:05.6]} 41... gxf5
{[%clk 0:00:03.5]} 42. Kg3 {[%clk 0:00:06]} 42... Kg7 {[%clk 0:00:04.1]} 43. Kf4
{[%clk 0:00:06.2]} 43... Kf6 {[%clk 0:00:03.9]} 44. Rd6+ {[%clk 0:00:06.5]}
44... Ke7 {[%clk 0:00:04.5]} 45. Rd5 {[%clk 0:00:06.7]} 45... Ke6 {[%clk
0:00:04.4]} 46. Re5+ {[%clk 0:00:06.9]} 46... Kd6 {[%clk 0:00:04.8]} 47. Rxf5
{[%clk 0:00:07.3]} 47... Rc2 {[%clk 0:00:05]} 48. Ke4 {[%clk 0:00:06.1]} 48...
Rxg2 {[%clk 0:00:03.2]} 49. Rxf7 {[%clk 0:00:06.1]} 49... Ke6 {[%clk 0:00:02.3]}
50. Rxh7 {[%clk 0:00:06]} 50... Kf6 {[%clk 0:00:02.9]} 51. Kxd4 {[%clk
0:00:05.8]} 51... Kg6 {[%clk 0:00:03.4]} 52. Rh4 {[%clk 0:00:05.9]} 52... Ra2
{[%clk 0:00:03.4]} 53. Ke3 {[%clk 0:00:05.7]} 53... Ra3+ {[%clk 0:00:03.6]} 54.
Kf2 {[%clk 0:00:06.1]} 54... Ra2+ {[%clk 0:00:04.2]} 55. Kf3 {[%clk 0:00:06.5]}
55... Ra3+ {[%clk 0:00:04.8]} 56. Kf2 {[%clk 0:00:07.1]} 56... Ra2+ {[%clk
0:00:05.4]} 57. Kf3 {[%clk 0:00:07.6]} 57... Ra3+ {[%clk 0:00:05.9]} 58. Kf2
{[%clk 0:00:07.9]} 1/2-1/2

[Event "*** SCC Grand Prix: Titled Tuesday Blitz"]
[Site "Chess.com"]
[Date "2020.09.08"]
[Round "9"]
[White "chenxiaoyuer"]
[Black "Ginger_GM"]
[Result "1-0"]
[WhiteElo "2485"]
[BlackElo "2587"]
[TimeControl "180+1"]
[EndTime "11:47:55 PDT"]
[Termination "chenxiaoyuer won on time"]

1. e4 {[%clk 0:03:00.9]} 1... c5 {[%clk 0:02:55.2]} 2. Nf3 {[%clk 0:02:59.3]}
2... d6 {[%clk 0:02:54.7]} 3. d4 {[%clk 0:02:59.1]} 3... cxd4 {[%clk 0:02:55]}
4. Nxd4 {[%clk 0:03:00]} 4... Nf6 {[%clk 0:02:55.3]} 5. Nc3 {[%clk 0:03:00.4]}
5... g6 {[%clk 0:02:55.3]} 6. Be2 {[%clk 0:02:59.7]} 6... Bg7 {[%clk 0:02:53.6]}
7. O-O {[%clk 0:02:59.7]} 7... Nc6 {[%clk 0:02:53.8]} 8. Nb3 {[%clk 0:02:59.6]}
8... O-O {[%clk 0:02:53.8]} 9. Bg5 {[%clk 0:03:00.1]} 9... a6 {[%clk 0:02:49.8]}
10. a4 {[%clk 0:02:59.4]} 10... Be6 {[%clk 0:02:47.3]} 11. Kh1 {[%clk
0:02:58.6]} 11... Na5 {[%clk 0:02:46.3]} 12. Nd2 {[%clk 0:02:57.5]} 12... Rc8
{[%clk 0:02:44.5]} 13. f4 {[%clk 0:02:56.6]} 13... Nc4 {[%clk 0:02:40.2]} 14.
Nxc4 {[%clk 0:02:47]} 14... Bxc4 {[%clk 0:02:39.9]} 15. Bxc4 {[%clk 0:02:47.9]}
15... Rxc4 {[%clk 0:02:39.2]} 16. Qd3 {[%clk 0:02:48.6]} 16... Rc5 {[%clk
0:02:24.9]} 17. Rae1 {[%clk 0:02:27.6]} 17... Rxg5 {[%clk 0:02:23.3]} 18. fxg5
{[%clk 0:02:25.9]} 18... Ng4 {[%clk 0:02:23.5]} 19. Nd5 {[%clk 0:02:11.1]} 19...
e6 {[%clk 0:02:17.9]} 20. Nf6+ {[%clk 0:01:52]} 20... Nxf6 {[%clk 0:02:17.4]}
21. gxf6 {[%clk 0:01:52.9]} 21... Bxf6 {[%clk 0:02:17.2]} 22. c3 {[%clk
0:01:46.4]} 22... Be5 {[%clk 0:02:16.8]} 23. Re3 {[%clk 0:01:41.1]} 23... h5
{[%clk 0:02:10.8]} 24. Ref3 {[%clk 0:01:40.6]} 24... Qh4 {[%clk 0:02:04.8]} 25.
g3 {[%clk 0:01:40.1]} 25... Qe7 {[%clk 0:02:04]} 26. Qe3 {[%clk 0:01:36.3]}
26... Kg7 {[%clk 0:02:02.3]} 27. Qf2 {[%clk 0:01:32.4]} 27... f6 {[%clk
0:01:59.1]} 28. c4 {[%clk 0:01:30]} 28... Qc7 {[%clk 0:01:52.7]} 29. Rb3 {[%clk
0:01:23.6]} 29... Rf7 {[%clk 0:01:48.3]} 30. Rc1 {[%clk 0:01:20.7]} 30... Qc6
{[%clk 0:01:47.2]} 31. Qf3 {[%clk 0:01:05.7]} 31... Qxa4 {[%clk 0:01:41.8]} 32.
Qe3 {[%clk 0:01:01.2]} 32... Rc7 {[%clk 0:01:31.4]} 33. Qb6 {[%clk 0:00:56.4]}
33... Rxc4 {[%clk 0:01:19.8]} 34. Qxb7+ {[%clk 0:00:49.4]} 34... Kh6 {[%clk
0:01:19.4]} 35. Re1 {[%clk 0:00:40.7]} 35... Qa5 {[%clk 0:01:01.4]} 36. Rbe3
{[%clk 0:00:32.7]} 36... Rc2 {[%clk 0:00:49.9]} 37. R3e2 {[%clk 0:00:26.6]}
37... Rc4 {[%clk 0:00:31.9]} 38. Qf7 {[%clk 0:00:24.3]} 38... Qc7 {[%clk
0:00:18.4]} 39. Qxe6 {[%clk 0:00:23.4]} 39... Rc1 {[%clk 0:00:16.5]} 40. Qb3
{[%clk 0:00:20.2]} 40... Rxe1+ {[%clk 0:00:14.6]} 41. Rxe1 {[%clk 0:00:21.1]}
41... Qc5 {[%clk 0:00:14]} 42. Kg2 {[%clk 0:00:19.6]} 42... g5 {[%clk
0:00:13.2]} 43. Re2 {[%clk 0:00:18.9]} 43... h4 {[%clk 0:00:12.7]} 44. Rc2
{[%clk 0:00:18.5]} 44... Qd4 {[%clk 0:00:12.2]} 45. Qd5 {[%clk 0:00:17.8]} 45...
Qe3 {[%clk 0:00:11.2]} 46. gxh4 {[%clk 0:00:07.8]} 46... g4 {[%clk 0:00:10.1]}
47. Rf2 {[%clk 0:00:05.3]} 47... Qh3+ {[%clk 0:00:06.3]} 48. Kh1 {[%clk
0:00:05.1]} 48... g3 {[%clk 0:00:06]} 49. Rg2 {[%clk 0:00:05.2]} 49... Qxh4
{[%clk 0:00:01.6]} 50. Qg8 {[%clk 0:00:04.6]} 50... Qxe4 {[%clk 0:00:01]} 51.
Qh8+ {[%clk 0:00:04.8]} 51... Kg5 {[%clk 0:00:01.5]} 52. Qg7+ {[%clk 0:00:04.8]}
52... Kh4 {[%clk 0:00:02]} 53. Qh6+ {[%clk 0:00:04.6]} 53... Kg4 {[%clk
0:00:02.3]} 54. h3+ {[%clk 0:00:04.6]} 54... Kf3 {[%clk 0:00:02.4]} 55. Qh5+
{[%clk 0:00:04.5]} 55... Ke3 {[%clk 0:00:02.9]} 56. Qh6+ {[%clk 0:00:03.6]}
56... Bf4 {[%clk 0:00:03.1]} 57. Qxf6 {[%clk 0:00:03.5]} 57... Qb1+ {[%clk
0:00:03]} 58. Rg1 {[%clk 0:00:03.8]} 58... Qxb2 {[%clk 0:00:03.5]} 59. Qxb2
{[%clk 0:00:03.6]} 1-0

[Event "*** SCC Grand Prix: Titled Tuesday Blitz"]
[Site "Chess.com"]
[Date "2020.09.08"]
[Round "9"]
[White "elohunter1999"]
[Black "TheMagnet"]
[Result "1/2-1/2"]
[WhiteElo "2467"]
[BlackElo "2578"]
[TimeControl "180+1"]
[EndTime "11:47:55 PDT"]
[Termination "Game drawn - insufficient material"]

1. e4 {[%clk 0:02:58]} 1... c5 {[%clk 0:03:00]} 2. Nf3 {[%clk 0:02:55.8]} 2...
g6 {[%clk 0:03:00.5]} 3. d4 {[%clk 0:02:55.7]} 3... cxd4 {[%clk 0:03:01.4]} 4.
Nxd4 {[%clk 0:02:56.6]} 4... Bg7 {[%clk 0:03:01.9]} 5. Nc3 {[%clk 0:02:57.3]}
5... Nc6 {[%clk 0:03:02.4]} 6. Be3 {[%clk 0:02:58]} 6... Nf6 {[%clk 0:03:02.7]}
7. Bc4 {[%clk 0:02:58.6]} 7... Qa5 {[%clk 0:03:03]} 8. O-O {[%clk 0:02:58.3]}
8... O-O {[%clk 0:03:02.2]} 9. Bb3 {[%clk 0:02:58.6]} 9... d6 {[%clk 0:03:02.8]}
10. h3 {[%clk 0:02:58.6]} 10... Bd7 {[%clk 0:03:02.9]} 11. Re1 {[%clk
0:02:58.9]} 11... Nxd4 {[%clk 0:03:03.2]} 12. Bxd4 {[%clk 0:02:58.9]} 12... Bc6
{[%clk 0:03:03.5]} 13. Nd5 {[%clk 0:02:31.5]} 13... Bxd5 {[%clk 0:02:53.6]} 14.
exd5 {[%clk 0:02:29.3]} 14... Rfe8 {[%clk 0:02:51.9]} 15. c4 {[%clk 0:02:27.8]}
15... Nd7 {[%clk 0:02:49.4]} 16. Bxg7 {[%clk 0:02:22.9]} 16... Kxg7 {[%clk
0:02:50.3]} 17. Ba4 {[%clk 0:02:23.5]} 17... Qc7 {[%clk 0:02:38.7]} 18. a3
{[%clk 0:02:16.2]} 18... a6 {[%clk 0:02:34.2]} 19. b4 {[%clk 0:02:12]} 19... Kg8
{[%clk 0:02:20.9]} 20. Qd4 {[%clk 0:02:05.6]} 20... Rab8 {[%clk 0:01:41.3]} 21.
c5 {[%clk 0:01:44.8]} 21... dxc5 {[%clk 0:01:09.1]} 22. bxc5 {[%clk 0:01:43.6]}
22... Qxc5 {[%clk 0:01:09.4]} 23. Qxc5 {[%clk 0:01:42.9]} 23... Nxc5 {[%clk
0:01:09.9]} 24. Bxe8 {[%clk 0:01:43.5]} 24... Rxe8 {[%clk 0:01:10.8]} 25. d6
{[%clk 0:01:06.7]} 25... e6 {[%clk 0:00:52.8]} 26. Rac1 {[%clk 0:01:03.6]} 26...
b6 {[%clk 0:00:48.5]} 27. Rb1 {[%clk 0:01:02.5]} 27... Rb8 {[%clk 0:00:42.6]}
28. Rec1 {[%clk 0:01:01.2]} 28... Nd7 {[%clk 0:00:42.4]} 29. Rc7 {[%clk
0:00:59.9]} 29... Rd8 {[%clk 0:00:41]} 30. Rbc1 {[%clk 0:00:57.3]} 30... Kf8
{[%clk 0:00:41.3]} 31. Rc8 {[%clk 0:00:51.4]} 31... Ke8 {[%clk 0:00:41.6]} 32.
R1c7 {[%clk 0:00:50.2]} 32... b5 {[%clk 0:00:39.1]} 33. Kf1 {[%clk 0:00:47.8]}
33... a5 {[%clk 0:00:38.5]} 34. Ke2 {[%clk 0:00:46.8]} 34... b4 {[%clk
0:00:38.8]} 35. axb4 {[%clk 0:00:46.4]} 35... axb4 {[%clk 0:00:39.7]} 36. Kd2
{[%clk 0:00:44.9]} 36... e5 {[%clk 0:00:39.6]} 37. Kc2 {[%clk 0:00:39.9]} 37...
f5 {[%clk 0:00:39.1]} 38. Kb3 {[%clk 0:00:39.8]} 38... Rxc8 {[%clk 0:00:37.7]}
39. Rxc8+ {[%clk 0:00:39.4]} 39... Kf7 {[%clk 0:00:38.3]} 40. Kxb4 {[%clk
0:00:37.1]} 40... Ke6 {[%clk 0:00:38.4]} 41. Rh8 {[%clk 0:00:36]} 41... Kxd6
{[%clk 0:00:35.5]} 42. Rxh7 {[%clk 0:00:36.1]} 42... Ke6 {[%clk 0:00:35.3]} 43.
Kb5 {[%clk 0:00:31.8]} 43... Nf8 {[%clk 0:00:32.4]} 44. Ra7 {[%clk 0:00:26.9]}
44... e4 {[%clk 0:00:32.2]} 45. Kc5 {[%clk 0:00:25.5]} 45... Nd7+ {[%clk
0:00:30.8]} 46. Kd4 {[%clk 0:00:24.6]} 46... Nf6 {[%clk 0:00:29.5]} 47. Ra6+
{[%clk 0:00:22.5]} 47... Kf7 {[%clk 0:00:30]} 48. Ke5 {[%clk 0:00:20.8]} 48...
Nd7+ {[%clk 0:00:29.2]} 49. Kf4 {[%clk 0:00:21.2]} 49... Nc5 {[%clk 0:00:28.7]}
50. Rd6 {[%clk 0:00:17.7]} 50... Ne6+ {[%clk 0:00:24.3]} 51. Ke5 {[%clk
0:00:16.9]} 51... Nf8 {[%clk 0:00:22.4]} 52. g4 {[%clk 0:00:15.5]} 52... fxg4
{[%clk 0:00:17.3]} 53. hxg4 {[%clk 0:00:15.5]} 53... Ke7 {[%clk 0:00:17.9]} 54.
Ra6 {[%clk 0:00:15.2]} 54... Nd7+ {[%clk 0:00:18.3]} 55. Kxe4 {[%clk 0:00:15.3]}
55... Nc5+ {[%clk 0:00:18.8]} 56. Kf4 {[%clk 0:00:14.4]} 56... Nxa6 {[%clk
0:00:19]} 57. Kg5 {[%clk 0:00:14.8]} 57... Kf7 {[%clk 0:00:19.5]} 58. f4 {[%clk
0:00:14.9]} 58... Nc5 {[%clk 0:00:19.8]} 59. f5 {[%clk 0:00:13.3]} 59... Ne4+
{[%clk 0:00:19]} 60. Kf4 {[%clk 0:00:13.1]} 60... gxf5 {[%clk 0:00:19]} 61. Kxf5
{[%clk 0:00:12.2]} 61... Nd6+ {[%clk 0:00:18.7]} 62. Ke5 {[%clk 0:00:12.5]}
62... Nc4+ {[%clk 0:00:19]} 63. Kf4 {[%clk 0:00:12.8]} 63... Kg6 {[%clk
0:00:19]} 64. g5 {[%clk 0:00:12.8]} 64... Nb6 {[%clk 0:00:19.9]} 65. Ke4 {[%clk
0:00:13.2]} 65... Na4 {[%clk 0:00:20.8]} 66. Kd4 {[%clk 0:00:13.7]} 66... Nb6
{[%clk 0:00:20.5]} 67. Kc5 {[%clk 0:00:13.7]} 67... Nd7+ {[%clk 0:00:20.9]} 68.
Kd6 {[%clk 0:00:14.6]} 68... Nf8 {[%clk 0:00:21.2]} 69. Ke7 {[%clk 0:00:15.5]}
69... Nh7 {[%clk 0:00:21.6]} 70. Kd8 {[%clk 0:00:16.4]} 70... Nf8 {[%clk
0:00:21.1]} 71. Ke7 {[%clk 0:00:17.3]} 71... Nh7 {[%clk 0:00:21.6]} 72. Kd6
{[%clk 0:00:18.2]} 72... Kf5 {[%clk 0:00:21.8]} 73. g6 {[%clk 0:00:18]} 73...
Kxg6 {[%clk 0:00:21.5]} 1/2-1/2

[Event "*** SCC Grand Prix: Titled Tuesday Blitz"]
[Site "Chess.com"]
[Date "2020.09.08"]
[Round "9"]
[White "AlexSuv"]
[Black "fighter2jz"]
[Result "0-1"]
[WhiteElo "2538"]
[BlackElo "2714"]
[TimeControl "180+1"]
[EndTime "11:48:00 PDT"]
[Termination "fighter2jz won by resignation"]

1. d4 {[%clk 0:02:59]} 1... Nf6 {[%clk 0:02:59.1]} 2. c4 {[%clk 0:02:58.1]} 2...
e6 {[%clk 0:02:53.6]} 3. Nf3 {[%clk 0:02:58.4]} 3... d5 {[%clk 0:02:52.6]} 4.
Nc3 {[%clk 0:02:57.4]} 4... Bb4 {[%clk 0:02:53.1]} 5. cxd5 {[%clk 0:02:56.8]}
5... exd5 {[%clk 0:02:52.4]} 6. Bg5 {[%clk 0:02:57.3]} 6... h6 {[%clk
0:02:50.3]} 7. Bh4 {[%clk 0:02:56.7]} 7... g5 {[%clk 0:02:49]} 8. Bg3 {[%clk
0:02:56.8]} 8... Ne4 {[%clk 0:02:49.5]} 9. Qc2 {[%clk 0:02:55.1]} 9... Bf5
{[%clk 0:02:48.5]} 10. Qb3 {[%clk 0:02:48.7]} 10... c5 {[%clk 0:02:33.5]} 11. e3
{[%clk 0:02:46.9]} 11... Nc6 {[%clk 0:02:32]} 12. Bb5 {[%clk 0:02:43.5]} 12...
Qa5 {[%clk 0:02:27.2]} 13. O-O {[%clk 0:02:34.5]} 13... c4 {[%clk 0:02:17.3]}
14. Qa4 {[%clk 0:02:16.9]} 14... Qxa4 {[%clk 0:01:57.2]} 15. Nxa4 {[%clk
0:02:17.8]} 15... Bd7 {[%clk 0:01:56.7]} 16. a3 {[%clk 0:02:15]} 16... Be7
{[%clk 0:01:50.3]} 17. Nc3 {[%clk 0:02:11.9]} 17... Nxc3 {[%clk 0:01:45.8]} 18.
bxc3 {[%clk 0:02:12.8]} 18... f6 {[%clk 0:01:43.9]} 19. Rfe1 {[%clk 0:02:10.2]}
19... a6 {[%clk 0:01:42.6]} 20. Ba4 {[%clk 0:02:09.1]} 20... b5 {[%clk
0:01:40.7]} 21. Bc2 {[%clk 0:02:08.9]} 21... f5 {[%clk 0:01:41.4]} 22. Ne5
{[%clk 0:02:06.7]} 22... Nxe5 {[%clk 0:01:40.7]} 23. Bxe5 {[%clk 0:02:07.6]}
23... O-O {[%clk 0:01:37.1]} 24. f3 {[%clk 0:02:05.7]} 24... Bd8 {[%clk
0:01:31.8]} 25. e4 {[%clk 0:02:03.8]} 25... Ba5 {[%clk 0:01:27.6]} 26. Rad1
{[%clk 0:01:37.5]} 26... fxe4 {[%clk 0:01:12.6]} 27. fxe4 {[%clk 0:01:36.4]}
27... Bg4 {[%clk 0:01:10]} 28. Rb1 {[%clk 0:01:29]} 28... Rae8 {[%clk
0:00:42.1]} 29. exd5 {[%clk 0:01:10.8]} 29... Bxc3 {[%clk 0:00:41.2]} 30. Re3
{[%clk 0:01:10.9]} 30... Bd2 {[%clk 0:00:16.3]} 31. Rg3 {[%clk 0:01:10.3]} 31...
Bd7 {[%clk 0:00:13.2]} 32. d6 {[%clk 0:01:09.4]} 32... Bf4 {[%clk 0:00:11.4]}
33. Bxf4 {[%clk 0:00:38]} 33... Rxf4 {[%clk 0:00:12.3]} 34. Rd1 {[%clk
0:00:38.7]} 34... Re2 {[%clk 0:00:11.3]} 35. Bb1 {[%clk 0:00:35.3]} 35... Re6
{[%clk 0:00:11.8]} 36. h4 {[%clk 0:00:19.8]} 36... Rxh4 {[%clk 0:00:11.1]} 37.
d5 {[%clk 0:00:20.1]} 37... Rxd6 {[%clk 0:00:11.3]} 38. Re3 {[%clk 0:00:20.8]}
38... Rf4 {[%clk 0:00:11.6]} 39. Re7 {[%clk 0:00:20.3]} 39... Rf7 {[%clk
0:00:11.6]} 40. Re5 {[%clk 0:00:18.5]} 40... Kf8 {[%clk 0:00:10.9]} 41. Rde1
{[%clk 0:00:18.1]} 41... Kg7 {[%clk 0:00:11.4]} 42. Kh2 {[%clk 0:00:17.4]} 42...
g4 {[%clk 0:00:10.4]} 43. Kg3 {[%clk 0:00:17.6]} 43... a5 {[%clk 0:00:09.9]} 44.
Kh4 {[%clk 0:00:17.9]} 44... b4 {[%clk 0:00:10.1]} 45. axb4 {[%clk 0:00:18.8]}
45... axb4 {[%clk 0:00:10.4]} 46. R1e4 {[%clk 0:00:18.6]} 46... c3 {[%clk
0:00:10.8]} 47. Rxb4 {[%clk 0:00:18.6]} 47... Rf1 {[%clk 0:00:10.9]} 48. Be4
{[%clk 0:00:17.1]} 48... Rh1+ {[%clk 0:00:10.9]} 49. Kg3 {[%clk 0:00:17.1]}
49... Re1 {[%clk 0:00:11.5]} 50. Rc4 {[%clk 0:00:16.4]} 50... Kf6 {[%clk
0:00:08.5]} 51. Rh5 {[%clk 0:00:15.4]} 51... Kg7 {[%clk 0:00:07.1]} 52. Bd3
{[%clk 0:00:15]} 52... Re3+ {[%clk 0:00:07]} 53. Kh4 {[%clk 0:00:14.3]} 53...
Rxd3 {[%clk 0:00:07.9]} 54. Rf4 {[%clk 0:00:13]} 54... R3xd5 {[%clk 0:00:07.7]}
55. g3 {[%clk 0:00:12.6]} 55... Rxh5+ {[%clk 0:00:07.5]} 56. Kxh5 {[%clk
0:00:13.5]} 56... Be8+ {[%clk 0:00:08.1]} 57. Kh4 {[%clk 0:00:13.5]} 57... Bg6
{[%clk 0:00:08.3]} 58. Rxg4 {[%clk 0:00:13.5]} 58... c2 {[%clk 0:00:08.8]} 59.
Rc4 {[%clk 0:00:13.7]} 59... Rd1 {[%clk 0:00:09.1]} 60. Rc6 {[%clk 0:00:14.1]}
60... Kf8 {[%clk 0:00:09.3]} 61. Rxg6 {[%clk 0:00:13.7]} 61... c1=Q {[%clk
0:00:09.4]} 62. Rf6+ {[%clk 0:00:14.6]} 62... Kg7 {[%clk 0:00:09.5]} 63. Rg6+
{[%clk 0:00:15.5]} 0-1

[Event "*** SCC Grand Prix: Titled Tuesday Blitz"]
[Site "Chess.com"]
[Date "2020.09.08"]
[Round "9"]
[White "Jungle_Jaguar"]
[Black "Olga_Girya"]
[Result "0-1"]
[WhiteElo "2646"]
[BlackElo "2504"]
[TimeControl "180+1"]
[EndTime "11:48:01 PDT"]
[Termination "Olga_Girya won by checkmate"]

1. e4 {[%clk 0:03:00.9]} 1... c6 {[%clk 0:02:59.8]} 2. d4 {[%clk 0:02:58.1]}
2... d5 {[%clk 0:02:59.8]} 3. e5 {[%clk 0:02:58.7]} 3... Bf5 {[%clk 0:02:59.6]}
4. h4 {[%clk 0:02:58.9]} 4... h5 {[%clk 0:02:58]} 5. c4 {[%clk 0:02:58.8]} 5...
e6 {[%clk 0:02:58.1]} 6. Nc3 {[%clk 0:02:56.9]} 6... Ne7 {[%clk 0:02:52.3]} 7.
Nge2 {[%clk 0:02:54.4]} 7... Nd7 {[%clk 0:02:49.1]} 8. Ng3 {[%clk 0:02:50.2]}
8... Bg6 {[%clk 0:02:49.3]} 9. Bg5 {[%clk 0:02:40.6]} 9... Qb6 {[%clk
0:02:37.5]} 10. Bd3 {[%clk 0:02:13.7]} 10... Qxb2 {[%clk 0:02:11.8]} 11. Rc1
{[%clk 0:02:11.7]} 11... Bxd3 {[%clk 0:02:08.9]} 12. Qxd3 {[%clk 0:02:11]} 12...
dxc4 {[%clk 0:02:09.2]} 13. Qxc4 {[%clk 0:02:08.8]} 13... Nd5 {[%clk 0:02:05.5]}
14. O-O {[%clk 0:02:07.2]} 14... N7b6 {[%clk 0:01:42.2]} 15. Qd3 {[%clk
0:01:56.6]} 15... Qa3 {[%clk 0:01:42.1]} 16. Nge4 {[%clk 0:01:44]} 16... Bb4
{[%clk 0:01:25.1]} 17. Rfd1 {[%clk 0:01:33.3]} 17... Bxc3 {[%clk 0:00:54.6]} 18.
Nxc3 {[%clk 0:01:28.7]} 18... Nxc3 {[%clk 0:00:34.6]} 19. Rxc3 {[%clk
0:01:28.1]} 19... Qxa2 {[%clk 0:00:28.6]} 20. Rc2 {[%clk 0:01:10.4]} 20... Qa6
{[%clk 0:00:27.6]} 21. Qxa6 {[%clk 0:01:05.3]} 21... bxa6 {[%clk 0:00:27.7]} 22.
Rxc6 {[%clk 0:01:06.2]} 22... Rc8 {[%clk 0:00:24.1]} 23. Rxc8+ {[%clk
0:01:00.8]} 23... Nxc8 {[%clk 0:00:24.3]} 24. Ra1 {[%clk 0:00:55.6]} 24... Kd7
{[%clk 0:00:21.5]} 25. Rxa6 {[%clk 0:00:56.5]} 25... Kc7 {[%clk 0:00:21.4]} 26.
f4 {[%clk 0:00:38.8]} 26... Kb7 {[%clk 0:00:21.3]} 27. Ra2 {[%clk 0:00:35.7]}
27... Nb6 {[%clk 0:00:21.4]} 28. Kf2 {[%clk 0:00:31.7]} 28... Rc8 {[%clk
0:00:21.3]} 29. g4 {[%clk 0:00:28.1]} 29... hxg4 {[%clk 0:00:16.1]} 30. Kg3
{[%clk 0:00:28.5]} 30... Rc4 {[%clk 0:00:14.2]} 31. Rd2 {[%clk 0:00:26.8]} 31...
a5 {[%clk 0:00:12.6]} 32. Kxg4 {[%clk 0:00:25.5]} 32... g6 {[%clk 0:00:12.8]}
33. Be7 {[%clk 0:00:23.6]} 33... Nd5 {[%clk 0:00:11.8]} 34. Bc5 {[%clk
0:00:21.8]} 34... a4 {[%clk 0:00:10.7]} 35. Kg5 {[%clk 0:00:19]} 35... Rc3
{[%clk 0:00:10.5]} 36. Ra2 {[%clk 0:00:16.6]} 36... Rc4 {[%clk 0:00:07.1]} 37.
Rf2 {[%clk 0:00:09.6]} 37... Kc6 {[%clk 0:00:06.8]} 38. Kh6 {[%clk 0:00:09.7]}
38... Rc3 {[%clk 0:00:05.8]} 39. Kg7 {[%clk 0:00:08.9]} 39... a3 {[%clk
0:00:02.3]} 40. Kxf7 {[%clk 0:00:09.3]} 40... Rb3 {[%clk 0:00:01.3]} 41. Kxe6
{[%clk 0:00:09.3]} 41... Rb2 {[%clk 0:00:01.6]} 42. Rf3 {[%clk 0:00:07.1]} 42...
a2 {[%clk 0:00:01.8]} 43. Ra3 {[%clk 0:00:07.7]} 43... Nc3 {[%clk 0:00:01.6]}
44. Bd6 {[%clk 0:00:06.3]} 44... Nb5 {[%clk 0:00:01.5]} 45. Bc5 {[%clk
0:00:06.4]} 45... Nxa3 {[%clk 0:00:01.5]} 46. Bxa3 {[%clk 0:00:07.3]} 46... a1=Q
{[%clk 0:00:01.8]} 47. Bxb2 {[%clk 0:00:08.2]} 47... Qxb2 {[%clk 0:00:02.3]} 48.
d5+ {[%clk 0:00:09.1]} 48... Kc5 {[%clk 0:00:02.4]} 49. d6 {[%clk 0:00:10]}
49... Qb3+ {[%clk 0:00:02.5]} 50. Kf6 {[%clk 0:00:10.9]} 50... Qd5 {[%clk
0:00:02.6]} 51. d7 {[%clk 0:00:11.8]} 51... Qxd7 {[%clk 0:00:02.4]} 52. Kxg6
{[%clk 0:00:12.7]} 52... Kd5 {[%clk 0:00:02.8]} 53. h5 {[%clk 0:00:12]} 53...
Qe6+ {[%clk 0:00:03]} 54. Kg5 {[%clk 0:00:12.3]} 54... Ke4 {[%clk 0:00:03]} 55.
h6 {[%clk 0:00:13.2]} 55... Qf5+ {[%clk 0:00:03.3]} 56. Kh4 {[%clk 0:00:14.1]}
56... Qxf4+ {[%clk 0:00:03.5]} 57. Kh5 {[%clk 0:00:14.5]} 57... Qf5+ {[%clk
0:00:03.8]} 58. Kh4 {[%clk 0:00:14.4]} 58... Kf4 {[%clk 0:00:04.1]} 59. h7
{[%clk 0:00:14.1]} 59... Qg4# {[%clk 0:00:04.3]} 0-1